[Event "Gibraltar Masters 18th"]
[Site "Gibraltar"]
[Date "2020.01.28"]
[Round "8.22"]
[White "Ali Marandi, Cemil Can"]
[Black "Durarbayli, Vasif"]
[Result "0-1"]
[ECO "B08"]
[WhiteElo "2546"]
[BlackElo "2625"]
[PlyCount "106"]
[EventDate "2020.01.21"]
[EventType "swiss"]
[EventRounds "10"]
[EventCountry "GGB"]
[SourceTitle "BritBase"]
[Source "John Saunders"]
[SourceDate "2021.06.05"]
[SourceVersion "1"]
[SourceVersionDate "2021.06.05"]
[SourceQuality "1"]
[TimeControl "40/100:0"]
[WhiteClock "0:27:38"]
[BlackClock "0:31:55"]

1. d4 {[%emt 0:00:00]} Nf6 {[%emt 0:00:00]} 2. Nf3 {[%emt 0:00:00]} d6 {
[%emt 0:00:00]} 3. Nc3 {[%emt 0:00:00]} g6 {[%emt 0:00:00]} 4. e4 {[%emt 0:00:
00]} Bg7 {[%emt 0:00:00]} 5. Be2 {[%emt 0:00:00]} O-O {[%emt 0:00:00]} 6. O-O {
[%emt 0:00:00]} Nc6 {[%emt 0:00:00]} 7. h3 {[%emt 0:00:00]} e5 {[%emt 0:00:00]}
8. dxe5 {[%emt 0:00:00]} dxe5 {[%emt 0:00:00]} 9. Qxd8 {[%emt 0:00:00]} Rxd8 {
[%emt 0:00:00]} 10. Bg5 {[%emt 0:00:00]} Be6 {[%emt 0:00:00]} 11. Rfd1 {
[%emt 0:00:00]} h6 {[%emt 0:00:00]} 12. Bxf6 {[%emt 0:00:00]} Bxf6 {[%emt 0:00:
00]} 13. Nb5 {[%emt 0:00:00]} Rac8 {[%emt 0:00:00]} 14. Rxd8+ {[%emt 0:00:00]}
Bxd8 {[%emt 0:00:00]} 15. Rd1 {[%emt 0:00:00]} Be7 {[%emt 0:00:00]} 16. Nc3 {
[%emt 0:00:00]} Bd6 {[%emt 0:00:00]} 17. Nd5 {[%emt 0:00:00]} f5 {[%emt 0:00:
00]} 18. Bc4 {[%emt 0:00:00]} Kf7 {[%emt 0:00:00]} 19. Ne3 {[%emt 0:00:00]}
Bxc4 {[%emt 0:00:00]} 20. Nxc4 {[%emt 0:00:00]} Ke6 {[%emt 0:00:00]} 21. c3 {
[%emt 0:00:00]} b5 {[%emt 0:00:00]} 22. Ne3 {[%emt 0:00:00]} Bc5 {[%emt 0:00:
00]} 23. exf5+ {[%emt 0:00:00]} gxf5 {[%emt 0:00:00]} 24. Nc2 {[%emt 0:00:00]}
a5 {[%emt 0:00:00]} 25. a3 {[%emt 0:00:00]} a4 {[%emt 0:00:00]} 26. Kf1 {
[%emt 0:00:00]} Rb8 {[%emt 0:00:00]} 27. g3 {[%emt 0:00:00]} Rd8 {[%emt 0:00:
00]} 28. Rxd8 {[%emt 0:00:00]} Nxd8 {[%emt 0:00:00]} 29. g4 {[%emt 0:00:00]}
fxg4 {[%emt 0:00:00]} 30. hxg4 {[%emt 0:00:00]} Kd5 {[%emt 0:00:00]} 31. Ke2 {
[%emt 0:00:00]} Ne6 {[%emt 0:00:00]} 32. Ne3+ {[%emt 0:00:00]} Ke4 {[%emt 0:00:
00]} 33. Nh4 {[%emt 0:00:00]} Nf4+ {[%emt 0:00:00]} 34. Kd2 {[%emt 0:00:00]}
Bxe3+ {[%emt 0:00:00]} 35. fxe3 {[%emt 0:00:00]} Nd3 {[%emt 0:00:00]} 36. Nf5 {
[%emt 0:00:00]} Nxb2 {[%emt 0:00:00]} 37. Nxh6 {[%emt 0:00:00]} Nc4+ {[%emt 0:
00:00]} 38. Ke2 {[%emt 0:00:00]} Nxe3 {[%emt 0:00:00]} 39. g5 {[%emt 0:00:00]}
Nd5 {[%emt 0:00:00]} 40. Kd2 {[%emt 0:00:00]} Ne7 {[%emt 0:00:00]} 41. Nf7 {
[%emt 0:00:00]} Ng6 {[%emt 0:00:00]} 42. Ke2 {[%emt 0:00:00]} Kd5 {[%emt 0:00:
00]} 43. Kd3 {[%emt 0:00:00]} e4+ {[%emt 0:00:00]} 44. Kd2 {[%emt 0:00:00]} Kc4
{[%emt 0:00:00]} 45. Nd8 {[%emt 0:00:00]} Kd5 {[%emt 0:00:00]} 46. Nf7 {
[%emt 0:00:00]} Nh4 {[%emt 0:00:00]} 47. Ke3 {[%emt 0:00:00]} c5 {[%emt 0:00:
00]} 48. Kd2 {[%emt 0:00:00]} b4 {[%emt 0:00:00]} 49. cxb4 {[%emt 0:00:00]}
cxb4 {[%emt 0:00:00]} 50. axb4 {[%emt 0:00:00]} e3+ {[%emt 0:00:00]} 51. Kxe3 {
[%emt 0:00:00]} a3 {[%emt 0:00:00]} 52. g6 {[%emt 0:00:00]} Nxg6 {[%emt 0:00:
00]} 53. Ng5 {[%emt 0:00:00]} a2 {[%emt 0:00:00]} 0-1

[Event "Gibraltar Masters 18th"]
[Site "Gibraltar"]
[Date "2020.01.28"]
[Round "8.23"]
[White "Tan, Zhongyi"]
[Black "Chigaev, Maksim"]
[Result "1-0"]
[ECO "E90"]
[WhiteElo "2493"]
[BlackElo "2616"]
[PlyCount "119"]
[EventDate "2020.01.21"]
[EventType "swiss"]
[EventRounds "10"]
[EventCountry "GGB"]
[SourceTitle "BritBase"]
[Source "John Saunders"]
[SourceDate "2021.06.05"]
[SourceVersion "1"]
[SourceVersionDate "2021.06.05"]
[SourceQuality "1"]
[TimeControl "40/100:0"]
[WhiteClock "1:00:58"]
[BlackClock "0:23:48"]

1. d4 {[%emt 0:00:00]} Nf6 {[%emt 0:00:00]} 2. c4 {[%emt 0:00:00]} g6 {[%emt 0:
00:00]} 3. Nc3 {[%emt 0:00:00]} Bg7 {[%emt 0:00:00]} 4. e4 {[%emt 0:00:00]} d6
{[%emt 0:00:00]} 5. h3 {[%emt 0:00:00]} O-O {[%emt 0:00:00]} 6. Be3 {[%emt 0:
00:00]} Na6 {[%emt 0:00:00]} 7. Nf3 {[%emt 0:00:00]} c6 {[%emt 0:00:00]} 8. Be2
{[%emt 0:00:00]} e5 {[%emt 0:00:00]} 9. d5 {[%emt 0:00:00]} Nh5 {[%emt 0:00:00]
} 10. O-O {[%emt 0:00:00]} c5 {[%emt 0:00:00]} 11. Re1 {[%emt 0:00:00]} Bd7 {
[%emt 0:00:00]} 12. a3 {[%emt 0:00:00]} Kh8 {[%emt 0:00:00]} 13. Nb5 {[%emt 0:
00:00]} Qe7 {[%emt 0:00:00]} 14. Rb1 {[%emt 0:00:00]} Nf6 {[%emt 0:00:00]} 15.
Bd3 {[%emt 0:00:00]} Ng8 {[%emt 0:00:00]} 16. b4 {[%emt 0:00:00]} b6 {[%emt 0:
00:00]} 17. Bc2 {[%emt 0:00:00]} Bh6 {[%emt 0:00:00]} 18. Ba4 {[%emt 0:00:00]}
Rfc8 {[%emt 0:00:00]} 19. Nd2 {[%emt 0:00:00]} Kg7 {[%emt 0:00:00]} 20. Nc3 {
[%emt 0:00:00]} Nb8 {[%emt 0:00:00]} 21. Qe2 {[%emt 0:00:00]} f6 {[%emt 0:00:
00]} 22. Nb3 {[%emt 0:00:00]} Bxe3 {[%emt 0:00:00]} 23. fxe3 {[%emt 0:00:00]}
Bxa4 {[%emt 0:00:00]} 24. Nxa4 {[%emt 0:00:00]} Nh6 {[%emt 0:00:00]} 25. bxc5 {
[%emt 0:00:00]} dxc5 {[%emt 0:00:00]} 26. Nc3 {[%emt 0:00:00]} Nf7 {[%emt 0:00:
00]} 27. Nd2 {[%emt 0:00:00]} Na6 {[%emt 0:00:00]} 28. Rf1 {[%emt 0:00:00]} Nc7
{[%emt 0:00:00]} 29. a4 {[%emt 0:00:00]} Nd6 {[%emt 0:00:00]} 30. a5 {[%emt 0:
00:00]} Rab8 {[%emt 0:00:00]} 31. axb6 {[%emt 0:00:00]} axb6 {[%emt 0:00:00]}
32. Rb2 {[%emt 0:00:00]} Na6 {[%emt 0:00:00]} 33. Nb5 {[%emt 0:00:00]} Nb4 {
[%emt 0:00:00]} 34. Nxd6 {[%emt 0:00:00]} Qxd6 {[%emt 0:00:00]} 35. Nb1 {
[%emt 0:00:00]} Ra8 {[%emt 0:00:00]} 36. Nc3 {[%emt 0:00:00]} Qe7 {[%emt 0:00:
00]} 37. Nb5 {[%emt 0:00:00]} Rf8 {[%emt 0:00:00]} 38. Qg4 {[%emt 0:00:00]} h5
{[%emt 0:00:00]} 39. Qg3 {[%emt 0:00:00]} Ra5 {[%emt 0:00:00]} 40. Rd2 {
[%emt 0:00:00]} Rxb5 {[%emt 0:00:00]} 41. cxb5 {[%emt 0:00:00]} c4 {[%emt 0:00:
00]} 42. Rc1 {[%emt 0:00:00]} Qc5 {[%emt 0:00:00]} 43. Qe1 {[%emt 0:00:00]} c3
{[%emt 0:00:00]} 44. Qe2 {[%emt 0:00:00]} Rc8 {[%emt 0:00:00]} 45. Kh2 {
[%emt 0:00:00]} Qd6 {[%emt 0:00:00]} 46. Rdd1 {[%emt 0:00:00]} c2 {[%emt 0:00:
00]} 47. Rd2 {[%emt 0:00:00]} Qc5 {[%emt 0:00:00]} 48. h4 {[%emt 0:00:00]} Qc3
{[%emt 0:00:00]} 49. d6 {[%emt 0:00:00]} Qa3 {[%emt 0:00:00]} 50. Qf1 {[%emt 0:
00:00]} Qxe3 {[%emt 0:00:00]} 51. d7 {[%emt 0:00:00]} Rd8 {[%emt 0:00:00]} 52.
Rd6 {[%emt 0:00:00]} f5 {[%emt 0:00:00]} 53. Rxg6+ {[%emt 0:00:00]} Kxg6 {
[%emt 0:00:00]} 54. Qxf5+ {[%emt 0:00:00]} Kh6 {[%emt 0:00:00]} 55. Qf6+ {
[%emt 0:00:00]} Kh7 {[%emt 0:00:00]} 56. Qe7+ {[%emt 0:00:00]} Kh6 {[%emt 0:00:
00]} 57. Rf1 {[%emt 0:00:00]} Rg8 {[%emt 0:00:00]} 58. Rf6+ {[%emt 0:00:00]}
Rg6 {[%emt 0:00:00]} 59. Qf8+ {[%emt 0:00:00]} Kh7 {[%emt 0:00:00]} 60. Rf7+ {
[%emt 0:00:00]} 1-0

[Event "Gibraltar Masters 18th"]
[Site "Gibraltar"]
[Date "2020.01.28"]
[Round "8.24"]
[White "Can, Emre"]
[Black "Gordon, Stephen J"]
[Result "1-0"]
[ECO "D43"]
[WhiteElo "2600"]
[BlackElo "2504"]
[PlyCount "49"]
[EventDate "2020.01.21"]
[EventType "swiss"]
[EventRounds "10"]
[EventCountry "GGB"]
[SourceTitle "BritBase"]
[Source "John Saunders"]
[SourceDate "2021.06.05"]
[SourceVersion "1"]
[SourceVersionDate "2021.06.05"]
[SourceQuality "1"]
[TimeControl "40/100:0"]
[WhiteClock "0:31:00"]
[BlackClock "0:14:38"]

1. d4 {[%emt 0:02:31]} Nf6 {[%emt 0:00:00]} 2. c4 {[%emt 0:00:00]} e6 {[%emt 0:
00:00]} 3. Nf3 {[%emt 0:00:00]} d5 {[%emt 0:00:00]} 4. Nc3 {[%emt 0:00:00]} c6
{[%emt 0:00:00]} 5. Qd3 {[%emt 0:00:00]} dxc4 {[%emt 0:00:00]} 6. Qxc4 {
[%emt 0:00:00]} b5 {[%emt 0:00:00]} 7. Qd3 {[%emt 0:00:00]} a6 {[%emt 0:00:00]}
8. Bg5 {[%emt 0:00:00]} c5 {[%emt 0:00:00]} 9. Bxf6 {[%emt 0:00:00]} gxf6 {
[%emt 0:00:00]} 10. d5 {[%emt 0:00:00]} Bg7 {[%emt 0:00:00]} 11. e4 {[%emt 0:
00:00]} O-O {[%emt 0:00:00]} 12. Rd1 {[%emt 0:00:00]} exd5 {[%emt 0:00:00]} 13.
exd5 {[%emt 0:00:00]} b4 {[%emt 0:00:00]} 14. Ne4 {[%emt 0:00:00]} Re8 {
[%emt 0:00:00]} 15. Be2 {[%emt 0:00:00]} c4 {[%emt 0:00:00]} 16. Qxc4 {[%emt 0:
00:00]} a5 {[%emt 0:00:00]} 17. Ng3 {[%emt 0:00:00]} f5 {[%emt 0:00:00]} 18.
O-O {[%emt 0:00:00]} Bxb2 {[%emt 0:00:00]} 19. Bd3 {[%emt 0:00:00]} Qf6 {
[%emt 0:00:00]} 20. Rfe1 {[%emt 0:00:00]} Rd8 {[%emt 0:00:00]} 21. Qf4 {
[%emt 0:00:00]} Bc3 {[%emt 0:00:00]} 22. Re3 {[%emt 0:00:00]} Nd7 {[%emt 0:00:
00]} 23. Nh5 {[%emt 0:00:00]} Qg6 {[%emt 0:00:00]} 24. Nh4 {[%emt 0:00:00]}
Qxh5 {[%emt 0:00:00]} 25. Be2 {[%emt 0:00:00]} 1-0

[Event "Gibraltar Masters 18th"]
[Site "Gibraltar"]
[Date "2020.01.28"]
[Round "8.25"]
[White "Santos Latasa, Jaime"]
[Black "Quintiliano Pinto, Renato R"]
[Result "1-0"]
[ECO "B90"]
[WhiteElo "2586"]
[BlackElo "2471"]
[PlyCount "123"]
[EventDate "2020.01.21"]
[EventType "swiss"]
[EventRounds "10"]
[EventCountry "GGB"]
[SourceTitle "BritBase"]
[Source "John Saunders"]
[SourceDate "2021.06.05"]
[SourceVersion "1"]
[SourceVersionDate "2021.06.05"]
[SourceQuality "1"]
[TimeControl "40/100:0"]
[WhiteClock "1:22:30"]
[BlackClock "0:44:13"]

1. e4 {[%emt 0:00:00]} c5 {[%emt 0:00:00]} 2. Nf3 {[%emt 0:00:00]} d6 {[%emt 0:
00:00]} 3. d4 {[%emt 0:00:00]} cxd4 {[%emt 0:00:00]} 4. Nxd4 {[%emt 0:00:00]}
Nf6 {[%emt 0:00:00]} 5. Nc3 {[%emt 0:00:00]} a6 {[%emt 0:00:00]} 6. Be3 {
[%emt 0:00:00]} e5 {[%emt 0:00:00]} 7. Nb3 {[%emt 0:00:00]} Be6 {[%emt 0:00:00]
} 8. f3 {[%emt 0:00:00]} h5 {[%emt 0:00:00]} 9. Nd5 {[%emt 0:00:00]} Bxd5 {
[%emt 0:00:00]} 10. exd5 {[%emt 0:00:00]} Nbd7 {[%emt 0:00:00]} 11. Qd2 {
[%emt 0:00:00]} g6 {[%emt 0:00:00]} 12. Be2 {[%emt 0:00:00]} Bg7 {[%emt 0:00:
00]} 13. O-O-O {[%emt 0:00:00]} Nb6 {[%emt 0:00:00]} 14. Qa5 {[%emt 0:00:00]}
Bh6 {[%emt 0:00:00]} 15. Bxh6 {[%emt 0:00:00]} Rxh6 {[%emt 0:00:00]} 16. f4 {
[%emt 0:00:00]} exf4 {[%emt 0:00:00]} 17. Rhf1 {[%emt 0:00:00]} Nbd7 {[%emt 0:
00:00]} 18. Qb4 {[%emt 0:00:00]} Qc7 {[%emt 0:00:00]} 19. Rxf4 {[%emt 0:00:00]}
Kf8 {[%emt 0:00:00]} 20. Rdf1 {[%emt 0:00:00]} Re8 {[%emt 0:00:00]} 21. Bd3 {
[%emt 0:00:00]} Kg7 {[%emt 0:00:00]} 22. Qd4 {[%emt 0:00:00]} Re5 {[%emt 0:00:
00]} 23. Qf2 {[%emt 0:00:00]} Qd8 {[%emt 0:00:00]} 24. Nd4 {[%emt 0:00:00]} Qe7
{[%emt 0:00:00]} 25. Qg3 {[%emt 0:00:00]} h4 {[%emt 0:00:00]} 26. Qf2 {[%emt 0:
00:00]} Rhh5 {[%emt 0:00:00]} 27. Bxa6 {[%emt 0:00:00]} bxa6 {[%emt 0:00:00]}
28. Nc6 {[%emt 0:00:00]} Qe8 {[%emt 0:00:00]} 29. Rxf6 {[%emt 0:00:00]} Nxf6 {
[%emt 0:00:00]} 30. Qxf6+ {[%emt 0:00:00]} Kg8 {[%emt 0:00:00]} 31. Nxe5 {
[%emt 0:00:00]} Rxe5 {[%emt 0:00:00]} 32. Qxh4 {[%emt 0:00:00]} Re4 {[%emt 0:
00:00]} 33. Qg3 {[%emt 0:00:00]} Re3 {[%emt 0:00:00]} 34. Qg4 {[%emt 0:00:00]}
Re4 {[%emt 0:00:00]} 35. Qd1 {[%emt 0:00:00]} Re2 {[%emt 0:00:00]} 36. Qd4 {
[%emt 0:00:00]} Re4 {[%emt 0:00:00]} 37. Qc3 {[%emt 0:00:00]} Re3 {[%emt 0:00:
00]} 38. Qa5 {[%emt 0:00:00]} Re2 {[%emt 0:00:00]} 39. Kb1 {[%emt 0:00:00]}
Rxc2 {[%emt 0:00:23]} 40. Kxc2 {[%emt 0:00:00]} Qe2+ {[%emt 0:00:00]} 41. Kc3 {
[%emt 0:00:00]} Qe3+ {[%emt 0:01:23]} 42. Kb4 {[%emt 0:00:00]} Qd2+ {[%emt 0:
00:00]} 43. Ka4 {[%emt 0:00:00]} Qc2+ {[%emt 0:00:00]} 44. Ka3 {[%emt 0:00:00]}
Qd3+ {[%emt 0:00:00]} 45. b3 {[%emt 0:00:00]} Qxf1 {[%emt 0:00:00]} 46. Qd8+ {
[%emt 0:00:00]} Kg7 {[%emt 0:00:00]} 47. Qxd6 {[%emt 0:00:00]} Qc1+ {[%emt 0:
00:00]} 48. Ka4 {[%emt 0:00:00]} Qb2 {[%emt 0:00:00]} 49. a3 {[%emt 0:00:00]}
Qxg2 {[%emt 0:00:00]} 50. Qe5+ {[%emt 0:00:00]} Kh7 {[%emt 0:00:00]} 51. b4 {
[%emt 0:00:00]} f5 {[%emt 0:00:00]} 52. d6 {[%emt 0:00:00]} Qc6+ {[%emt 0:00:
00]} 53. Ka5 {[%emt 0:00:00]} f4 {[%emt 0:00:00]} 54. b5 {[%emt 0:00:00]} axb5
{[%emt 0:00:00]} 55. Qxf4 {[%emt 0:00:00]} Qa8+ {[%emt 0:00:00]} 56. Kxb5 {
[%emt 0:00:00]} Qxa3 {[%emt 0:00:00]} 57. Qh4+ {[%emt 0:00:00]} Kg7 {[%emt 0:
00:00]} 58. Qd4+ {[%emt 0:00:00]} Kf7 {[%emt 0:00:00]} 59. d7 {[%emt 0:00:00]}
Qb3+ {[%emt 0:00:00]} 60. Kc6 {[%emt 0:00:00]} Qc2+ {[%emt 0:00:00]} 61. Kb7 {
[%emt 0:00:00]} Qg2+ {[%emt 0:00:00]} 62. Kb6 {[%emt 0:00:00]} 1-0

[Event "Gibraltar Masters 18th"]
[Site "Gibraltar"]
[Date "2020.01.28"]
[Round "8.26"]
[White "Werle, Iozefina"]
[Black "Kadric, Denis"]
[Result "0-1"]
[ECO "C41"]
[WhiteElo "2271"]
[BlackElo "2585"]
[PlyCount "108"]
[EventDate "2020.01.21"]
[EventType "swiss"]
[EventRounds "10"]
[EventCountry "GGB"]
[SourceTitle "BritBase"]
[Source "John Saunders"]
[SourceDate "2021.06.05"]
[SourceVersion "1"]
[SourceVersionDate "2021.06.05"]
[SourceQuality "1"]
[TimeControl "40/100:0"]
[WhiteClock "1:03:25"]
[BlackClock "0:38:13"]

1. e4 {[%emt 0:00:00]} d6 {[%emt 0:00:00]} 2. d4 {[%emt 0:00:00]} Nd7 {[%emt 0:
00:00]} 3. Nf3 {[%emt 0:00:00]} e5 {[%emt 0:00:00]} 4. Nc3 {[%emt 0:00:00]}
Ngf6 {[%emt 0:00:00]} 5. Bc4 {[%emt 0:00:00]} exd4 {[%emt 0:00:00]} 6. Qxd4 {
[%emt 0:00:00]} Be7 {[%emt 0:00:00]} 7. Bxf7+ {[%emt 0:00:00]} Kxf7 {[%emt 0:
00:00]} 8. Ng5+ {[%emt 0:00:00]} Ke8 {[%emt 0:00:00]} 9. Ne6 {[%emt 0:00:00]}
c5 {[%emt 0:00:00]} 10. Qd1 {[%emt 0:00:00]} Qb6 {[%emt 0:00:00]} 11. Nxg7+ {
[%emt 0:00:00]} Kf7 {[%emt 0:00:00]} 12. Nf5 {[%emt 0:00:00]} Ne5 {[%emt 0:00:
00]} 13. Nxe7 {[%emt 0:00:00]} Kxe7 {[%emt 0:00:00]} 14. Bg5 {[%emt 0:00:00]}
Be6 {[%emt 0:00:00]} 15. f4 {[%emt 0:00:00]} Nf7 {[%emt 0:00:00]} 16. Bxf6+ {
[%emt 0:00:00]} Kxf6 {[%emt 0:00:00]} 17. Qf3 {[%emt 0:00:00]} Ke7 {[%emt 0:00:
00]} 18. O-O-O {[%emt 0:00:00]} Kf8 {[%emt 0:00:00]} 19. g4 {[%emt 0:00:00]}
Qa5 {[%emt 0:00:00]} 20. Kb1 {[%emt 0:00:00]} b5 {[%emt 0:00:00]} 21. f5 {
[%emt 0:00:00]} Bc4 {[%emt 0:00:00]} 22. b3 {[%emt 0:00:00]} b4 {[%emt 0:00:00]
} 23. e5 {[%emt 0:00:00]} Rd8 {[%emt 0:00:00]} 24. Ne4 {[%emt 0:00:00]} Nxe5 {
[%emt 0:00:00]} 25. Qf4 {[%emt 0:00:00]} Qc7 {[%emt 0:00:00]} 26. bxc4 {
[%emt 0:00:00]} h6 {[%emt 0:00:00]} 27. Nf6 {[%emt 0:00:00]} Qg7 {[%emt 0:00:
00]} 28. Nd5 {[%emt 0:00:00]} Qxg4 {[%emt 0:00:00]} 29. Rhe1 {[%emt 0:00:00]}
Qxf4 {[%emt 0:00:00]} 30. Nxf4 {[%emt 0:00:00]} Kf7 {[%emt 0:00:00]} 31. Ne6 {
[%emt 0:00:00]} Rc8 {[%emt 0:00:00]} 32. Rxd6 {[%emt 0:00:00]} Nxc4 {[%emt 0:
00:00]} 33. Rd7+ {[%emt 0:00:00]} Kf6 {[%emt 0:00:00]} 34. Ng7 {[%emt 0:00:00]}
Rcd8 {[%emt 0:00:00]} 35. Rde7 {[%emt 0:00:00]} Rd2 {[%emt 0:00:00]} 36. h4 {
[%emt 0:00:00]} Rd1+ {[%emt 0:00:12]} 37. Rxd1 {[%emt 0:00:00]} Kxe7 {[%emt 0:
00:00]} 38. Nh5 {[%emt 0:00:00]} Rg8 {[%emt 0:00:19]} 39. f6+ {[%emt 0:00:00]}
Kf7 {[%emt 0:00:05]} 40. Rd7+ {[%emt 0:00:00]} Ke6 {[%emt 0:00:18]} 41. Re7+ {
[%emt 0:00:00]} Kf5 {[%emt 0:00:00]} 42. Re1 {[%emt 0:00:00]} Rf8 {[%emt 0:00:
00]} 43. Ng3+ {[%emt 0:00:00]} Kxf6 {[%emt 0:00:00]} 44. Rf1+ {[%emt 0:00:00]}
Ke7 {[%emt 0:00:00]} 45. Rxf8 {[%emt 0:00:00]} Kxf8 {[%emt 0:00:00]} 46. Nf5 {
[%emt 0:00:00]} a5 {[%emt 0:00:00]} 47. Kc1 {[%emt 0:00:00]} a4 {[%emt 0:00:00]
} 48. Nxh6 {[%emt 0:00:00]} Ne3 {[%emt 0:00:00]} 49. Kd2 {[%emt 0:00:00]} c4 {
[%emt 0:00:00]} 50. h5 {[%emt 0:00:00]} a3 {[%emt 0:00:00]} 51. c3 {[%emt 0:00:
00]} b3 {[%emt 0:00:00]} 52. axb3 {[%emt 0:00:00]} cxb3 {[%emt 0:00:00]} 53.
Kc1 {[%emt 0:00:00]} b2+ {[%emt 0:00:00]} 54. Kb1 {[%emt 0:00:00]} Nd1 {
[%emt 0:00:00]} 0-1

[Event "Gibraltar Masters 18th"]
[Site "Gibraltar"]
[Date "2020.01.28"]
[Round "8.27"]
[White "Idani, Pouya"]
[Black "Song, Raymond"]
[Result "1/2-1/2"]
[ECO "B49"]
[WhiteElo "2577"]
[BlackElo "2478"]
[PlyCount "60"]
[EventDate "2020.01.21"]
[EventType "swiss"]
[EventRounds "10"]
[EventCountry "GGB"]
[SourceTitle "BritBase"]
[Source "John Saunders"]
[SourceDate "2021.06.05"]
[SourceVersion "1"]
[SourceVersionDate "2021.06.05"]
[SourceQuality "1"]
[TimeControl "40/100:0"]
[WhiteClock "1:03:46"]
[BlackClock "1:27:31"]

1. e4 {[%emt 0:00:00]} c5 {[%emt 0:00:00]} 2. Nf3 {[%emt 0:00:00]} e6 {[%emt 0:
00:00]} 3. d4 {[%emt 0:00:00]} cxd4 {[%emt 0:00:00]} 4. Nxd4 {[%emt 0:00:00]}
Nc6 {[%emt 0:00:00]} 5. Nc3 {[%emt 0:00:00]} Qc7 {[%emt 0:00:00]} 6. Be3 {
[%emt 0:00:00]} a6 {[%emt 0:00:00]} 7. a3 {[%emt 0:00:00]} b5 {[%emt 0:00:00]}
8. Nxc6 {[%emt 0:00:00]} Qxc6 {[%emt 0:00:00]} 9. Be2 {[%emt 0:00:00]} Bb7 {
[%emt 0:00:00]} 10. O-O {[%emt 0:00:00]} Rc8 {[%emt 0:00:00]} 11. Bf3 {[%emt 0:
00:00]} Qc7 {[%emt 0:00:00]} 12. Qd3 {[%emt 0:00:00]} Bd6 {[%emt 0:00:00]} 13.
g3 {[%emt 0:00:00]} Be5 {[%emt 0:00:00]} 14. Bd4 {[%emt 0:00:00]} Nf6 {[%emt 0:
00:00]} 15. Rad1 {[%emt 0:00:00]} O-O {[%emt 0:00:00]} 16. Bxe5 {[%emt 0:00:00]
} Qxe5 {[%emt 0:00:00]} 17. Qd6 {[%emt 0:00:00]} Qxd6 {[%emt 0:00:00]} 18. Rxd6
{[%emt 0:00:00]} Bc6 {[%emt 0:00:00]} 19. Kg2 {[%emt 0:00:00]} e5 {[%emt 0:00:
00]} 20. Re1 {[%emt 0:00:00]} a5 {[%emt 0:00:00]} 21. Re3 {[%emt 0:00:00]} b4 {
[%emt 0:00:00]} 22. axb4 {[%emt 0:00:00]} axb4 {[%emt 0:00:00]} 23. Na2 {
[%emt 0:00:00]} Rb8 {[%emt 0:00:00]} 24. Rb3 {[%emt 0:00:00]} Ba4 {[%emt 0:00:
00]} 25. Rxb4 {[%emt 0:00:00]} Bxc2 {[%emt 0:00:00]} 26. Rd2 {[%emt 0:00:00]}
Bb3 {[%emt 0:00:00]} 27. Rxb8 {[%emt 0:00:00]} Rxb8 {[%emt 0:00:00]} 28. Nc3 {
[%emt 0:00:00]} Kf8 {[%emt 0:00:00]} 29. Be2 {[%emt 0:00:00]} Ke7 {[%emt 0:00:
00]} 30. f3 {[%emt 0:00:00]} h5 {[%emt 0:00:00]} 1/2-1/2

[Event "Gibraltar Masters 18th"]
[Site "Gibraltar"]
[Date "2020.01.28"]
[Round "8.28"]
[White "Krishna, C R G."]
[Black "Peralta, Fernando"]
[Result "1/2-1/2"]
[ECO "E11"]
[WhiteElo "2436"]
[BlackElo "2574"]
[PlyCount "83"]
[EventDate "2020.01.21"]
[EventType "swiss"]
[EventRounds "10"]
[EventCountry "GGB"]
[SourceTitle "BritBase"]
[Source "John Saunders"]
[SourceDate "2021.06.05"]
[SourceVersion "1"]
[SourceVersionDate "2021.06.05"]
[SourceQuality "1"]
[TimeControl "40/100:0"]
[WhiteClock "0:02:08"]
[BlackClock "0:01:01"]

1. d4 {[%emt 0:00:00]} Nf6 {[%emt 0:00:00]} 2. c4 {[%emt 0:00:00]} e6 {[%emt 0:
00:00]} 3. g3 {[%emt 0:00:00]} d5 {[%emt 0:00:00]} 4. Nf3 {[%emt 0:00:00]} Bb4+
{[%emt 0:00:00]} 5. Bd2 {[%emt 0:00:00]} Be7 {[%emt 0:00:00]} 6. Bg2 {[%emt 0:
00:00]} c6 {[%emt 0:00:00]} 7. Qc2 {[%emt 0:00:00]} O-O {[%emt 0:00:00]} 8. O-O
{[%emt 0:00:00]} Nbd7 {[%emt 0:00:00]} 9. a4 {[%emt 0:00:00]} a5 {[%emt 0:00:
00]} 10. Rc1 {[%emt 0:00:00]} Ne4 {[%emt 0:00:00]} 11. Be1 {[%emt 0:00:00]} f5
{[%emt 0:00:00]} 12. Nfd2 {[%emt 0:00:00]} Bd6 {[%emt 0:00:00]} 13. Nxe4 {
[%emt 0:00:00]} dxe4 {[%emt 0:00:00]} 14. Rd1 {[%emt 0:00:00]} e5 {[%emt 0:00:
00]} 15. c5 {[%emt 0:00:00]} Bc7 {[%emt 0:00:00]} 16. d5 {[%emt 0:00:00]} cxd5
{[%emt 0:00:00]} 17. Rxd5 {[%emt 0:00:00]} Qe7 {[%emt 0:00:00]} 18. Na3 {
[%emt 0:00:00]} Nf6 {[%emt 0:00:00]} 19. Rdd1 {[%emt 0:00:00]} Ra6 {[%emt 0:00:
00]} 20. Rac1 {[%emt 0:00:00]} f4 {[%emt 0:00:00]} 21. Bxe4 {[%emt 0:00:00]}
fxg3 {[%emt 0:00:00]} 22. hxg3 {[%emt 0:00:00]} Nxe4 {[%emt 0:00:00]} 23. Qxe4
{[%emt 0:00:00]} Rh6 {[%emt 0:00:00]} 24. Nb5 {[%emt 0:00:00]} Bb8 {[%emt 0:00:
00]} 25. Nd6 {[%emt 0:00:00]} Bxd6 {[%emt 0:00:00]} 26. cxd6 {[%emt 0:00:00]}
Rxd6 {[%emt 0:00:00]} 27. Rxd6 {[%emt 0:00:00]} Qxd6 {[%emt 0:00:00]} 28. Bxa5
{[%emt 0:00:00]} Qf6 {[%emt 0:00:00]} 29. Be1 {[%emt 0:00:00]} Qf5 {[%emt 0:00:
00]} 30. Qxf5 {[%emt 0:00:00]} Bxf5 {[%emt 0:00:00]} 31. Rc5 {[%emt 0:00:00]}
e4 {[%emt 0:00:00]} 32. Bc3 {[%emt 0:00:00]} g6 {[%emt 0:00:00]} 33. a5 {
[%emt 0:00:00]} h5 {[%emt 0:00:00]} 34. b4 {[%emt 0:00:00]} Rc8 {[%emt 0:00:00]
} 35. Rxc8+ {[%emt 0:00:41]} Bxc8 {[%emt 0:00:00]} 36. b5 {[%emt 0:00:00]} Kf7
{[%emt 0:00:00]} 37. Kf1 {[%emt 0:00:05]} Ke6 {[%emt 0:00:30]} 38. Ke1 {
[%emt 0:00:00]} Kd5 {[%emt 0:00:00]} 39. Kd2 {[%emt 0:00:00]} Kc4 {[%emt 0:00:
00]} 40. b6 {[%emt 0:00:00]} Kb5 {[%emt 0:00:00]} 41. Ke3 {[%emt 0:00:26]} Bg4
{[%emt 0:01:49]} 42. Be1 {[%emt 0:03:01]} 1/2-1/2